bitfinex-derivatives/quotes_BNBF0:USTF0_20250511
["timestamp","ask_amount","ask_price","bid_price","bid_amount"]
[1746969123620,0.30409463,657.69,656.8,1.44318547]
[1746969124019,0.30409463,657.69,656.81,1.44318547]
[1746969124221,0.30409463,657.69,656.82,1.44318547]
[1746969124421,0.30409463,657.69,656.83,1.16403244]
[1746969124617,0.30409463,657.69,656.83,1.44318547]
[1746969124817,0.30409463,657.69,656.84,1.16403244]
[1746969125015,0.30409463,657.69,656.84,1.44318547]
[1746969125215,0.30409463,657.69,656.85,1.44318547]
[1746969125422,0.30409463,657.69,656.86,1.16403244]
[1746969125621,0.30409463,657.69,656.86,1.44318547]
[1746969126023,0.30409463,657.69,656.87,1.44318547]
[1746969126221,0.30409463,657.69,656.88,1.16403244]
[1746969126416,0.30409463,657.69,656.88,1.44318547]
[1746969126617,0.30409463,657.69,656.89,1.44318547]
[1746969126918,0.30409463,657.69,656.9,1.44318547]
[1746969127117,0.30409463,657.69,656.91,1.16403244]
[1746969127321,0.30409463,657.69,656.92,0.27915303]
[1746969127720,0.30409463,657.69,656.93,1.44318547]
[1746969127918,0.30409463,657.69,656.94,1.16403244]
[1746969128124,0.30409463,657.69,656.94,1.44318547]
[1746969128423,0.30409463,657.69,656.95,1.44318547]
[1746969128624,0.30409463,657.69,656.96,1.16403244]
[1746969128823,0.30409463,657.69,656.97,0.27915303]
[1746969129226,0.30409463,657.69,656.98,0.27915303]
[1746969129725,0.30409463,657.69,656.99,0.27915303]
[1746969130321,0.30409463,657.69,657.0,0.27915303]
[1746969130523,0.30409463,657.69,657.01,1.16641531]
[1746969130723,0.30409463,657.69,657.01,1.44556834]
[1746969131228,0.30409463,657.69,657.02,0.27915303]
[1746969131426,0.30409463,657.69,657.03,1.16641531]
[1746969131627,0.30409463,657.69,657.04,0.27915323]
[1746969131827,0.30409463,657.69,657.05,1.16641531]
[1746969132027,0.30409463,657.69,657.06,0.27915323]
[1746969132224,0.30409463,657.69,657.07,0.27915323]
[1746969132429,0.30409463,657.69,657.07,1.44556854]
[1746969132623,0.30409463,657.69,657.08,0.27915323]
[1746969132828,0.30409463,657.69,657.09,1.16633535]
[1746969133027,0.30409463,657.69,657.1,1.16633535]
[1746969133426,0.30409463,657.69,657.09,1.44548858]
[1746969133731,0.30409463,657.69,657.1,1.44548858]
[1746969133930,0.30409463,657.69,657.11,1.16633535]
[1746969134133,0.30409463,657.69,657.11,1.44548858]
[1746969134326,0.30409463,657.69,657.12,1.16633535]
[1746969134528,0.30409463,657.69,657.13,1.16633535]
[1746969134830,0.30409463,657.69,657.14,1.16633535]
[1746969135030,0.30409463,657.69,657.15,1.16633535]
[1746969135241,0.30409463,657.69,657.16,1.16633535]
[1746969135530,0.30409463,657.69,657.16,1.44548858]
[1746969135732,0.30409463,657.69,657.17,1.16633535]
[1746969135926,0.30409463,657.69,657.17,1.44548858]
[1746969136129,0.30409463,657.69,657.18,1.44548858]
[1746969136326,0.30409463,657.69,657.18,1.44541237]
[1746969136630,0.30409463,657.69,657.19,1.44540179]
[1746969136830,0.30409463,657.69,657.2,1.16624856]
[1746969137027,0.30409463,657.69,657.2,1.44540179]
[1746969137228,0.30409463,657.69,657.21,1.16624973]
[1746969137433,0.30409463,657.69,657.22,1.16624973]
[1746969137727,0.30409463,657.69,657.23,1.44540296]
[1746969138132,0.30409463,657.69,657.24,0.27915323]
[1746969138332,0.30409463,657.69,657.24,1.44540296]
[1746969138832,0.30409463,657.69,657.25,0.27915323]
[1746969139033,0.30409463,657.69,657.26,1.16624973]
[1746969139633,0.30409463,657.69,657.27,0.27915323]
[1746969139829,0.30409463,657.69,657.28,1.16624973]
[1746969140133,0.30409463,657.69,657.29,1.16624973]
[1746969140329,0.30409463,657.69,657.29,1.44540296]
[1746969140635,0.30409463,657.69,657.3,0.27915323]
[1746969141134,0.30409463,657.69,656.96,0.27915323]
[1746969141433,0.30409463,657.69,656.97,1.44458051]
[1746969141733,0.30409463,657.69,656.98,0.27915323]
[1746969141933,0.30409463,657.69,656.99,1.16542728]
[1746969142230,0.30409463,657.69,656.99,1.44458051]
[1746969142434,0.30409463,657.69,657.0,0.27915323]
[1746969142734,0.30409463,657.69,657.01,1.16542728]
[1746969143134,0.30409463,657.69,657.02,0.27915323]
[1746969143835,0.30409463,657.69,657.03,1.16542728]
[1746969144135,0.30409463,657.69,657.04,1.16542728]
[1746969144334,0.30409463,657.69,657.04,1.44458051]
[1746969144630,0.30409463,657.69,657.05,1.16542728]
[1746969144831,0.30409463,657.69,657.05,1.44458051]
[1746969145134,0.30409463,657.69,657.06,0.27915323]
[1746969145334,0.30409463,657.69,657.06,1.44458051]
[1746969145835,0.30409463,657.69,657.07,1.16542728]
[1746969146037,0.30409463,657.69,657.07,1.44458051]
[1746969146235,0.30409463,657.69,657.08,0.27915323]
[1746969147036,0.30409463,657.69,657.09,1.16542728]
[1746969147238,0.30409463,657.69,657.1,1.16542728]
[1746969147435,0.30409463,657.69,657.1,1.44458051]
[1746969147633,0.30409463,657.69,657.11,1.16542728]
[1746969147833,0.30409463,657.69,657.12,1.16542728]
[1746969148132,0.30409463,657.69,657.13,0.27915323]
[1746969148638,0.30409463,657.69,657.14,1.16542728]
[1746969149239,0.30409463,657.69,657.15,0.27915323]
[1746969149940,0.30409463,657.69,656.9,0.27915323]
[1746969150240,0.30409463,657.69,656.91,1.16552099]
[1746969150734,0.30409463,657.69,656.92,1.44467422]
[1746969150938,0.30409463,657.69,656.92,1.16552099]
[1746969151140,0.30409463,657.69,656.9,1.16552099]
[1746969151336,0.30409463,657.69,656.93,0.27923583]
[1746969151538,0.30409463,657.69,656.91,0.27923583]
[1746969151738,0.30409463,657.69,656.92,1.16552099]
[1746969152441,0.30409463,657.69,656.93,0.27923583]
[1746969152637,0.30409463,657.69,656.94,1.16552099]
[1746969152844,0.30409463,657.69,656.94,1.44475682]
[1746969153141,0.30409463,657.69,656.95,1.44475682]
[1746969153441,0.30409463,657.69,656.96,0.27923583]
[1746969153638,0.30409463,657.69,656.97,1.16552099]
[1746969153837,0.30409463,657.69,656.97,1.44475682]
[1746969154140,0.30409463,657.69,656.98,0.27923583]
[1746969154442,0.30409463,657.69,656.99,1.16552099]
[1746969154842,0.30409463,657.69,657.0,0.27923583]
[1746969155142,0.30409463,657.69,657.01,1.16552099]
[1746969155540,0.30409463,657.69,657.02,0.27923583]
[1746969156041,0.30409463,657.69,657.03,1.16552099]
[1746969156342,0.30409463,657.69,657.04,0.27923583]
[1746969156638,0.30409463,657.69,657.05,1.16552099]
[1746969156938,0.30409463,657.69,657.06,0.27923583]
[1746969157244,0.30409463,657.69,657.07,1.16552099]
[1746969157944,0.30409463,657.69,657.08,0.27923622]
[1746969158444,0.30409463,657.69,657.09,1.16552099]
[1746969158639,0.30409463,657.69,657.09,0.27923622]
[1746969158839,0.30409463,657.69,655.99,0.90469293]
[1746969159039,0.30409463,657.69,656.0,2.07021392]
[1746969159344,0.30409463,657.69,656.01,2.07021392]
[1746969159545,0.30409463,657.69,656.02,0.90469293]
[1746969159945,0.30409463,657.69,656.03,0.90469293]
[1746969160246,0.30409463,657.69,656.04,0.90469293]
[1746969160544,0.30409463,657.69,656.05,0.90469293]
[1746969160741,0.30409463,657.69,656.06,1.16552099]
[1746969160946,0.30409463,657.69,656.06,2.07021392]
[1746969161151,0.30409463,657.69,656.07,0.90469293]
[1746969161445,0.30409463,657.69,656.08,2.07021392]
[1746969161646,0.30409463,657.69,656.09,0.90469293]
[1746969161846,0.30409463,657.69,656.1,2.07021392]
[1746969162145,0.30409463,657.69,656.11,0.90469293]
[1746969162348,0.30409463,657.69,656.12,2.07021392]
[1746969162546,0.30409463,657.69,656.13,0.90469293]
[1746969162847,0.30409463,657.69,656.14,2.07021392]
[1746969163047,0.30409463,657.69,656.15,0.27923622]
[1746969163239,0.30409463,657.69,656.16,0.27923622]
[1746969163547,0.30409463,657.69,656.17,1.16552099]
[1746969163847,0.30409463,657.69,656.17,1.44475721]
[1746969164047,0.30409463,657.69,656.18,1.16552099]
[1746969164442,0.30409463,657.69,656.19,1.44476821]
[1746969164747,0.30409463,657.69,656.2,0.27924722]
[1746969165055,0.30409463,657.69,656.21,0.27924722]
[1746969165247,0.30409463,657.69,656.22,1.16552099]
[1746969165449,0.30409463,657.69,656.22,1.44476821]
[1746969165643,0.30409463,657.69,656.23,1.44476821]
[1746969166044,0.30409463,657.69,656.24,1.44476821]
[1746969166349,0.30409463,657.69,656.25,0.27924722]
[1746969166648,0.30409463,657.69,656.26,1.16552099]
[1746969166844,0.30409463,657.69,656.26,1.44476821]
[1746969167050,0.30409463,657.69,656.27,1.44476821]
[1746969167352,0.30409463,657.69,656.28,0.27924722]
[1746969167650,0.30409463,657.69,656.29,0.27924722]
[1746969167847,0.30409463,657.69,656.3,1.16552099]
[1746969168050,0.30409463,657.69,656.3,1.44476821]
[1746969168350,0.30409463,657.69,656.31,0.27924722]
[1746969168551,0.30409463,657.69,656.32,1.16552099]
[1746969168752,0.30409463,657.69,656.33,1.16552099]
[1746969169346,0.30409463,657.69,656.34,0.27924722]
[1746969169747,0.30409463,657.69,656.35,1.16552099]
[1746969169951,0.30409463,657.69,656.35,1.44476821]
[1746969170352,0.30409463,657.69,656.36,1.44476821]
[1746969170653,0.30409463,657.69,656.37,0.27924722]
[1746969170952,0.30409463,657.69,656.38,1.16552099]
[1746969171152,0.30409463,657.69,656.38,1.44476821]
[1746969171353,0.30409463,657.69,656.39,1.44476821]
[1746969171854,0.30409463,657.69,656.4,1.44476821]
[1746969172155,0.30409463,657.69,656.41,0.27924722]
[1746969172348,0.30409463,657.69,656.42,1.16552099]
[1746969172550,0.30409463,657.69,656.42,1.44476821]
[1746969172753,0.30409463,657.69,656.43,1.16552099]
[1746969173055,0.30409463,657.69,656.43,1.44476821]
[1746969173254,0.30409463,657.69,656.44,0.27924722]
[1746969173451,0.26459452,657.68,656.44,1.44476821]
[1746969173652,0.26459452,657.68,656.45,1.44476821]
[1746969173957,0.26459452,657.68,656.46,1.16552099]
[1746969174157,0.26459452,657.68,656.46,1.44476821]
[1746969174450,0.26459452,657.68,656.47,1.44476821]
[1746969174859,0.26459452,657.68,656.48,0.27924722]
[1746969175061,0.26459452,657.68,656.49,1.16552099]
[1746969175259,0.26459452,657.68,656.5,0.30400982]
[1746969175459,0.26459452,657.68,656.51,1.46953081]
[1746969175659,0.26459452,657.68,656.52,1.46953081]
[1746969175860,0.26459452,657.68,656.53,0.30400982]
[1746969176156,0.30409463,657.69,656.54,1.46953081]
[1746969176359,0.30409463,657.69,656.55,0.30400982]
[1746969176561,0.26459653,657.67,656.56,0.58325704]
[1746969176760,0.26459653,657.67,656.57,0.30400982]
[1746969176958,0.26459653,657.67,656.58,1.46953081]
[1746969177153,0.26459653,657.67,656.59,0.30400982]
[1746969177355,0.26459653,657.67,656.6,0.30400982]
[1746969177560,0.26459653,657.67,656.61,0.30400982]
[1746969177755,0.26459653,657.67,656.62,0.30400982]
[1746969177957,0.26459653,657.67,656.63,0.30400982]
[1746969178156,0.26459653,657.67,656.64,0.30400982]
[1746969178356,0.26459653,657.67,656.65,0.30400982]
[1746969178557,0.26459653,657.67,656.66,0.58325704]
[1746969178754,0.26459653,657.67,656.67,0.58325704]
[1746969178958,0.26459653,657.67,656.68,0.30400982]
[1746969179155,0.26459653,657.67,656.69,1.46953081]
[1746969179356,0.26459653,657.67,656.7,0.58325704]
[1746969179662,0.26459653,657.67,656.71,0.58325704]
[1746969179855,0.26459653,657.67,656.72,1.74877803]
[1746969180057,0.26459653,657.67,656.73,0.58325704]
[1746969180261,0.30409463,657.69,656.74,1.74877803]
[1746969180460,0.30409463,657.69,656.75,0.30400982]
[1746969180660,0.30409463,657.69,656.76,0.30400982]
[1746969180861,0.26455931,657.68,656.77,0.58324838]
[1746969181056,0.26455931,657.68,656.78,1.74876937]
[1746969181260,0.3041085,657.66,656.79,0.58324838]
[1746969181457,0.3041085,657.66,656.8,0.30400116]
[1746969181660,0.3041085,657.66,656.81,0.30400116]
[1746969181857,0.3041085,657.66,656.82,0.58324838]
[1746969182057,0.3041085,657.66,656.83,0.58324838]
[1746969182261,0.3041085,657.66,656.84,0.58324838]
[1746969182461,0.3041085,657.66,656.85,0.58324838]
[1746969182657,0.3041085,657.66,656.86,0.30400116]
[1746969182858,0.3041085,657.66,656.87,1.46952215]
[1746969183056,0.3041085,657.66,656.88,0.30400116]
[1746969183260,0.3041085,657.66,656.89,1.74876937]
[1746969183461,0.3041085,657.66,656.9,1.74876937]
[1746969183657,0.3041085,657.66,656.91,0.58324838]
[1746969183861,0.3041085,657.66,656.92,1.44476821]
[1746969184162,0.3041085,657.66,656.93,0.27924722]
[1746969184362,0.3041085,657.66,656.93,0.58324981]
[1746969184664,0.3041085,657.66,656.94,1.16552099]
[1746969184862,0.3041085,657.66,656.95,0.27931321]
[1746969185863,0.3041085,657.66,656.96,1.16552099]
[1746969186163,0.3041085,657.66,656.97,0.27931321]
[1746969187064,0.3041085,657.66,656.61,0.27931321]
[1746969187263,0.3041085,657.66,656.62,0.58334317]
[1746969187462,0.3041085,657.66,656.63,0.58334317]
[1746969187664,0.3041085,657.66,656.6,0.26455831]
[1746969187665,0.3041085,657.66,656.64,1.75055166]
[1746969187965,0.3041085,657.66,656.65,0.58334317]
[1746969188164,0.3041085,657.66,656.66,0.58334317]
[1746969188465,0.26458949,657.65,656.67,0.58334317]
[1746969188668,0.26458949,657.65,656.68,0.30402996]
[1746969188961,0.26458949,657.65,656.69,1.47123845]
[1746969189164,0.26458949,657.65,656.7,0.30402996]
[1746969189659,0.26458949,657.65,656.71,1.16720849]
[1746969189861,0.26458949,657.65,656.72,0.30402996]
[1746969190068,0.26458949,657.65,656.73,0.30403012]
[1746969190261,0.30412237,657.63,656.74,1.47123861]
[1746969190464,0.30412237,657.63,656.75,0.30403012]
[1746969190660,0.30412237,657.63,656.76,0.30403012]
[1746969190860,0.30412237,657.63,656.77,1.75055182]
[1746969191062,0.30412237,657.63,656.78,0.30403012]
[1746969191266,0.30412237,657.63,656.79,0.30403012]
[1746969191466,0.26457943,657.62,656.8,1.75055182]
[1746969191761,0.26457943,657.62,656.81,0.30403012]
[1746969191960,0.26457943,657.62,656.82,1.47123346]
[1746969192159,0.26457943,657.62,656.83,0.30402497]
[1746969192363,0.26457943,657.62,656.84,1.47123346]
[1746969192561,0.26457943,657.62,656.85,0.30402497]
[1746969192763,0.26457943,657.62,656.86,1.16720849]
[1746969192965,0.26457943,657.62,656.87,0.58333818]
[1746969193163,0.26457943,657.62,656.87,0.27931321]
[1746969193362,0.26457943,657.62,656.86,1.16720849]
[1746969193563,0.26457943,657.62,656.87,0.30402708]
[1746969193765,0.26457943,657.62,656.88,0.27932488]
[1746969193966,0.26457943,657.62,656.89,1.16720849]
[1746969194166,0.30412237,657.63,656.89,1.16720849]
[1746969194461,0.26456937,657.61,656.9,0.27932488]
[1746969194762,0.26456937,657.61,656.91,1.16720849]
[1746969195170,0.30413625,657.6,656.92,0.27932488]
[1746969195367,0.30413625,657.6,656.93,1.16720849]
[1746969195969,0.30413625,657.6,656.94,0.27932488]
[1746969196170,0.30413625,657.6,656.95,1.16720849]
[1746969196775,0.30413625,657.6,656.96,0.27932488]
[1746969197574,0.26456535,657.59,655.84,0.90496009]
[1746969197871,0.30415012,657.57,655.85,1.20899028]
[1746969198072,0.30415012,657.57,655.86,1.47248285]
[1746969198272,0.30415012,657.57,655.86,2.07341275]
[1746969198566,0.30415012,657.57,655.87,0.90496009]
[1746969198770,0.30415012,657.57,655.87,2.07341275]
[1746969198970,0.30415012,657.57,655.88,1.16963611]
[1746969199165,0.30415012,657.57,655.89,1.44777754]
[1746969199366,0.30415012,657.57,655.89,2.07341275]
[1746969199567,0.30415012,657.57,655.9,0.90496009]
[1746969199771,0.30415012,657.57,655.91,0.90496009]
[1746969200072,0.30415012,657.57,655.92,1.16845266]
[1746969200273,0.30415012,657.57,655.92,2.07341275]
[1746969200473,0.30415012,657.57,655.93,2.07341275]
[1746969200773,0.30415012,657.57,655.94,0.90496009]
[1746969200974,0.30415012,657.57,655.95,2.07341275]
[1746969201273,0.30415012,657.57,655.95,1.16845266]
[1746969201670,0.30415012,657.57,655.96,2.07342579]
[1746969201975,0.30415012,657.57,655.97,0.90497313]
[1746969202274,0.30415012,657.57,655.98,2.07342579]
[1746969202576,0.30415012,657.57,655.99,0.90497313]
[1746969202871,0.30415012,657.57,656.0,0.90497313]
[1746969203072,0.30415012,657.57,656.01,2.07342579]
[1746969203572,0.30415012,657.57,656.02,2.07342579]
[1746969203775,0.30415012,657.57,656.03,0.90497313]
[1746969203975,0.30415012,657.57,656.04,1.16845266]
[1746969204275,0.30415012,657.57,656.05,0.90497313]
[1746969204776,0.30415012,657.57,656.06,2.07342579]
[1746969204974,0.30415012,657.57,656.07,0.27932919]
[1746969205279,0.30415012,657.57,656.08,1.44778185]
[1746969205577,0.30415012,657.57,656.09,0.27932919]
[1746969205873,0.30415012,657.57,656.1,0.27932919]
[1746969206078,0.30415012,657.57,656.1,1.44778185]
[1746969206278,0.30415012,657.57,656.11,0.27932919]
[1746969206873,0.30415012,657.57,656.12,1.44778185]
[1746969207179,0.30415012,657.57,656.13,0.27932919]
[1746969207373,0.30415012,657.57,656.14,1.16845266]
[1746969207775,0.30415012,657.57,656.14,1.44778185]
[1746969207978,0.30415012,657.57,656.15,0.27932919]
[1746969208178,0.30415012,657.57,656.16,1.16845266]
[1746969208478,0.30415012,657.57,656.16,1.44778185]
[1746969208674,0.30415012,657.57,656.17,1.44778185]
[1746969208979,0.30415012,657.57,656.18,1.44778185]
[1746969209377,0.30415012,657.57,656.19,1.44778185]
[1746969209577,0.30415012,657.57,656.2,0.27932919]
[1746969209775,0.30415012,657.57,656.2,1.44778185]
[1746969210075,0.30415012,657.57,656.21,0.27932919]
[1746969210278,0.30415012,657.57,656.22,1.16845266]
[1746969210580,0.30415012,657.57,656.23,1.16845266]
[1746969211081,0.30415012,657.57,656.24,0.27932755]
[1746969211379,0.30415012,657.57,656.25,1.44778021]
[1746969211680,0.30415012,657.57,656.26,1.44778021]
[1746969212280,0.30415012,657.57,656.27,1.44778021]
[1746969212579,0.30415012,657.57,656.28,0.27932755]
[1746969212774,0.30415012,657.57,656.28,1.44778021]
[1746969212980,0.30415012,657.57,656.29,0.27932755]
[1746969213282,0.30415012,657.57,656.3,1.44778021]
[1746969213579,0.30415012,657.57,656.31,0.27932755]
[1746969213880,0.30415012,657.57,656.32,1.44778021]
[1746969214181,0.30415012,657.57,656.33,0.27932755]
[1746969214480,0.30415012,657.57,656.34,0.27932755]
[1746969214680,0.30415012,657.57,656.35,1.16845266]
[1746969214882,0.30415012,657.57,656.35,1.44778021]
[1746969215177,0.30415012,657.57,656.36,0.27932755]
[1746969215376,0.30415012,657.57,656.37,1.16845266]
[1746969215576,0.30415012,657.57,656.37,1.44778021]
[1746969215779,0.30415012,657.57,656.37,1.16845266]
[1746969215981,0.30415012,657.57,656.24,1.16845266]
[1746969216381,0.30415012,657.57,656.25,0.27932787]
[1746969216581,0.30415012,657.57,656.25,1.44778053]
[1746969216781,0.30415012,657.57,656.26,0.27932787]
[1746969216981,0.30415012,657.57,656.27,1.44778053]
[1746969217382,0.30415012,657.57,656.28,1.16845266]
[1746969217583,0.30415012,657.57,656.28,1.44778053]
[1746969217784,0.30415012,657.57,656.29,0.27932787]
[1746969217983,0.30415012,657.57,656.29,1.44778053]
[1746969218285,0.30415012,657.57,656.3,1.16845266]
[1746969218484,0.30415012,657.57,656.3,1.44778147]
[1746969218684,0.30415012,657.57,656.31,0.27932881]
[1746969218884,0.30415012,657.57,656.32,1.16845266]
[1746969219082,0.30415012,657.57,656.32,1.44778147]
[1746969219381,0.30415012,657.57,656.33,1.44778147]
[1746969219786,0.30415012,657.57,656.34,0.27932881]
[1746969219985,0.30415012,657.57,656.35,1.16845266]
[1746969220281,0.30415012,657.57,656.35,1.44778147]
[1746969220485,0.30415012,657.57,656.36,0.27932881]
[1746969220686,0.30415012,657.57,656.37,1.16845266]
[1746969220886,0.30415012,657.57,656.37,1.44778147]
[1746969221088,0.30415012,657.57,656.38,0.27932881]
[1746969221389,0.30415012,657.57,656.39,0.27932881]
[1746969221583,0.30415012,657.57,656.39,1.44778147]
[1746969221786,0.30415012,657.57,656.4,0.58335866]
[1746969221988,0.30415012,657.57,656.41,0.30402985]
[1746969222189,0.30415012,657.57,656.42,1.16845266]
[1746969222389,0.30415012,657.57,656.43,0.30402985]
[1746969222583,0.30415012,657.57,656.44,1.16845266]
[1746969222786,0.30415012,657.57,656.45,0.30402985]
[1746969223089,0.30415012,657.57,656.46,0.27932881]
[1746969223389,0.30415012,657.57,656.47,0.3040305]
[1746969223590,0.30415012,657.57,656.48,1.47248316]
[1746969223783,0.30415012,657.57,656.49,0.3040305]
[1746969223985,0.30415012,657.57,656.5,1.47248316]
[1746969224191,0.30415012,657.57,656.51,0.58335931]
[1746969224388,0.30415012,657.57,656.52,1.47248316]
[1746969224585,0.30415012,657.57,656.53,0.3040305]
[1746969224888,0.30415012,657.57,656.54,0.58335931]
[1746969225085,0.30415012,657.57,656.55,1.47248316]
[1746969225285,0.30415012,657.57,656.56,0.30403133]
[1746969225588,0.30415012,657.57,656.57,0.30403133]
[1746969225788,0.30415012,657.57,656.57,1.47248399]
[1746969225985,0.30415012,657.57,656.58,0.30403133]
[1746969226290,0.30415012,657.57,656.59,0.27932881]
[1746969226492,0.30415012,657.57,656.6,0.30403133]
[1746969226692,0.30415012,657.57,656.61,1.16845266]
[1746969226991,0.30415012,657.57,656.62,0.58336014]
[1746969227191,0.30415012,657.57,656.63,0.30403133]
[1746969227389,0.30415012,657.57,656.63,0.58336014]
[1746969227588,0.30415012,657.57,656.64,0.30403133]
[1746969227786,0.30415012,657.57,656.65,1.47248399]
[1746969227990,0.30415012,657.57,656.66,1.47248399]
[1746969228189,0.30415012,657.57,656.67,0.30403133]
[1746969228392,0.30415012,657.57,656.68,0.30403133]
[1746969228588,0.30415012,657.57,656.69,0.30403133]
[1746969228792,0.30415012,657.57,656.7,1.47248399]
[1746969228994,0.30415012,657.57,656.71,0.304028]
[1746969229194,0.30415012,657.57,656.72,0.304028]
[1746969229496,0.30415012,657.57,656.73,1.47248066]
[1746969229796,0.30415012,657.57,656.74,0.58335681]
[1746969229995,0.30415012,657.57,656.75,0.304028]
[1746969230197,0.30415012,657.57,656.76,0.27932881]
[1746969230397,0.30415012,657.57,656.77,0.304028]
[1746969230596,0.30415012,657.57,656.77,0.58335681]
[1746969230798,0.30415012,657.57,656.78,1.75180947]
[1746969230999,0.30415012,657.57,656.79,0.30403103]
[1746969231196,0.30415012,657.57,656.8,0.30403103]
[1746969231394,0.30415012,657.57,656.81,0.58335984]
[1746969231592,0.30415012,657.57,656.82,1.47248369]
[1746969231897,0.30415012,657.57,656.83,1.47248369]
[1746969232199,0.30415012,657.57,656.84,1.7518125]
[1746969232496,0.30415012,657.57,656.85,0.58335984]
[1746969232698,0.30415012,657.57,656.86,0.30403103]
[1746969232900,0.30415012,657.57,656.86,1.7518125]
[1746969233098,0.30415012,657.57,656.87,0.30403103]
[1746969233393,0.30415012,657.57,656.87,1.7518125]
[1746969233698,0.30415012,657.57,656.88,1.7518125]
[1746969233997,0.30415012,657.57,656.89,1.7518125]
[1746969234198,0.30415012,657.57,656.9,0.30403103]
[1746969234394,0.30415012,657.57,656.9,0.58335984]
[1746969234598,0.30415012,657.57,656.91,1.47248452]
[1746969234798,0.30415012,657.57,656.92,0.30403186]
[1746969235001,0.30415012,657.57,656.93,0.58336067]
[1746969235203,0.30415012,657.57,656.94,0.30403186]
[1746969235498,0.30415012,657.57,656.95,1.47248452]
[1746969235699,0.30415012,657.57,656.96,0.30403186]
[1746969235897,0.30415012,657.57,656.97,0.30403186]
[1746969236098,0.30415012,657.57,656.98,0.30403186]
[1746969236295,0.30415012,657.57,656.98,0.27932881]
[1746969236495,0.30415012,657.57,656.99,1.17321859]
[1746969236800,0.30415012,657.57,657.0,0.27932881]
[1746969237095,0.30415012,657.57,657.0,1.4525474]
[1746969237294,0.30415012,657.57,657.01,1.17321859]
[1746969237501,0.30415012,657.57,657.02,0.27932881]
[1746969237794,0.30415012,657.57,657.03,1.17321859]
[1746969238197,0.30415012,657.57,657.04,0.27932881]
[1746969238997,0.30415012,657.57,657.05,1.17321859]
[1746969239395,0.30415012,657.57,657.06,0.27932881]
[1746969239993,0.30415012,657.57,656.18,0.90497237]
[1746969240197,0.30415012,657.57,656.19,0.30403009]
[1746969240398,0.30415012,657.57,656.2,1.52693168]
[1746969240600,0.30415012,657.57,656.21,1.20900246]
[1746969240896,0.30415012,657.57,656.22,1.52693168]
[1746969241101,0.30415012,657.57,656.23,0.30403009]
[1746969241301,0.30415012,657.57,656.24,1.20900246]
[1746969241503,0.30415012,657.57,656.25,1.52693168]
[1746969241698,0.30415012,657.57,656.26,0.30403009]
[1746969241900,0.30415012,657.57,656.27,0.27932881]
[1746969242101,0.30415012,657.57,656.28,0.30400573]
[1746969242303,0.30415012,657.57,656.29,1.52690732]
[1746969242597,0.30415012,657.57,656.3,0.58333454]
[1746969242802,0.30415012,657.57,656.31,1.80623613]
[1746969243103,0.30415012,657.57,656.32,0.30400573]
[1746969243405,0.30415012,657.57,656.33,1.52690732]
[1746969243599,0.30415012,657.57,656.34,0.30400573]
[1746969243796,0.30415012,657.57,656.35,0.30400275]
[1746969244000,0.30415012,657.57,656.36,0.30400275]
[1746969244203,0.30415012,657.57,656.37,1.52690434]
[1746969244402,0.30415012,657.57,656.38,0.30400275]
[1746969244596,0.30415012,657.57,656.39,1.52690434]
[1746969244796,0.30415012,657.57,656.4,0.30400275]
[1746969244999,0.30415012,657.57,656.41,0.30400275]
[1746969245200,0.30415012,657.57,656.42,0.30400275]
[1746969245400,0.30415012,657.57,656.43,0.58333156]
[1746969245600,0.30415012,657.57,656.44,0.30400275]
[1746969245802,0.30415012,657.57,656.45,0.30400275]
[1746969246000,0.30415012,657.57,656.46,0.58333156]
[1746969246201,0.30415012,657.57,656.47,0.58333156]
[1746969246397,0.30415012,657.57,656.48,0.30400275]
[1746969246596,0.30415012,657.57,656.49,1.80623315]
[1746969246796,0.30415012,657.57,656.5,0.30400275]
[1746969247002,0.30415012,657.57,656.51,1.52690434]
[1746969247196,0.30415012,657.57,656.52,0.58333156]
[1746969247396,0.30415012,657.57,656.53,1.52690434]
[1746969247602,0.30415012,657.57,656.54,0.58333156]
[1746969247801,0.30415012,657.57,656.55,0.30400275]
[1746969248102,0.30415012,657.57,656.56,1.52690434]
[1746969248301,0.30415012,657.57,656.57,0.30400275]
[1746969248502,0.30415012,657.57,656.58,0.30400275]
[1746969248802,0.30415012,657.57,656.59,0.30400275]
[1746969249003,0.30415012,657.57,656.6,1.52690434]
[1746969249202,0.30415012,657.57,656.61,0.30400275]
[1746969249402,0.30415012,657.57,656.62,0.30400275]
[1746969249598,0.30415012,657.57,656.63,1.52690434]
[1746969249802,0.30415012,657.57,656.64,0.30400275]
[1746969249996,0.30415012,657.57,656.65,1.52690434]
[1746969250201,0.30415012,657.57,656.66,0.30400275]
[1746969250397,0.30415012,657.57,656.67,1.52690434]
[1746969250598,0.30415012,657.57,656.68,0.30400275]
[1746969250800,0.30415012,657.57,656.69,0.30400275]
[1746969250997,0.30415012,657.57,656.7,1.52690434]
[1746969251201,0.30415012,657.57,656.71,0.30395989]
[1746969251401,0.30415012,657.57,656.72,0.30395989]
[1746969251596,0.30415012,657.57,656.73,0.30395989]
[1746969251802,0.30415012,657.57,656.74,0.5832887]
[1746969252103,0.30415012,657.57,656.75,0.5832887]
[1746969252300,0.30415012,657.57,656.76,0.30395989]
[1746969252502,0.30415012,657.57,656.77,0.30395989]
[1746969252700,0.30415012,657.57,656.78,0.30395989]